fUST/lending_fUST_20240805
["ID","MTS","AMOUNT","RATE_DAILY","PERIOD"]
[334239998,1722855040756,-500.0,0.00041095,31]
[334239999,1722855040766,-500.0,0.00041095,31]
[334240000,1722855040778,-500.0,0.00041095,31]
[334240001,1722855040789,-500.0,0.00041095,31]
[334240002,1722855040799,-500.0,0.00041095,31]
[334240003,1722855040810,-500.0,0.00041095,31]
[334240004,1722855040820,-500.0,0.00041095,31]
[334240005,1722855040831,-500.0,0.00041095,31]
[334240006,1722855040840,-500.0,0.00041095,31]
[334240007,1722855040852,-500.0,0.00041095,31]
[334240008,1722855040862,-324.25006526,0.00041095,31]
[334240009,1722855040871,-500.0,0.00041095,31]
[334240010,1722855040881,-500.0,0.00041095,31]
[334240011,1722855040891,-500.0,0.00041095,31]
[334240012,1722855040900,-500.0,0.00041095,31]
[334240013,1722855040910,-500.0,0.00041095,31]
[334240014,1722855040925,-500.0,0.00041095,31]
[334240015,1722855040934,-500.0,0.00041095,31]
[334240016,1722855040944,-500.0,0.00041095,31]
[334240017,1722855040954,-500.0,0.00041095,31]
[334240018,1722855040964,-500.0,0.00041095,31]
[334240019,1722855040973,-500.0,0.00041095,31]
[334240020,1722855040982,-500.0,0.00041095,31]
[334240021,1722855040992,-500.0,0.00041095,31]
[334240022,1722855041002,-524.787987,0.00041095,31]
[334240023,1722855041012,-500.0,0.00041095,31]
[334240024,1722855041022,-500.0,0.00041095,31]
[334240025,1722855041031,-500.0,0.00041095,31]
[334240026,1722855041041,-1458.86,0.00041095,31]
[334240027,1722855041051,-518.46,0.00041095,31]
[334240028,1722855041060,-500.0,0.00041095,31]
[334240029,1722855041069,-500.0,0.00041095,31]
[334240030,1722855041079,-500.0,0.00041095,31]
[334240031,1722855041089,-500.0,0.00041095,31]
[334240032,1722855041098,-740.66,0.00041095,31]
[334240033,1722855041107,-635.54,0.00041095,31]
[334240034,1722855041116,-500.0,0.00041095,31]
[334240035,1722855041125,-500.0,0.00041095,31]
[334240036,1722855041135,-200.0,0.00041095,7]
[334240037,1722855041144,-500.0,0.00041095,31]
[334240038,1722855041154,-500.0,0.00041095,31]
[334240039,1722855041165,-500.0,0.00041095,31]
[334240040,1722855041174,-500.0,0.00041095,31]
[334240041,1722855041183,-500.0,0.00041095,31]
[334240042,1722855041193,-500.0,0.00041095,31]
[334240043,1722855041203,-491.83768491,0.00041095,31]
[334240044,1722855041212,-500.0,0.00041095,31]
[334240045,1722855041222,-670.29,0.00041095,31]
[334240046,1722855041231,-500.0,0.00041095,31]
[334240047,1722855041241,-517.66,0.00041095,31]
[334240048,1722855041250,-500.0,0.00041095,31]
[334240049,1722855041260,-719.7,0.00041095,31]
[334240050,1722855041270,-793.81,0.00041095,31]
[334240051,1722855041279,-500.0,0.00041095,31]
[334240052,1722855041289,-500.0,0.00041095,31]
[334240053,1722855041298,-500.0,0.00041095,31]
[334240054,1722855041307,-516.44845626,0.00041095,31]
[334240055,1722855041318,-500.0,0.00041095,31]
[334240056,1722855041327,-500.0,0.00041095,31]
[334240057,1722855041337,-500.0,0.00041095,31]
[334240058,1722855041347,-1510.24,0.00041095,31]
[334240059,1722855041356,-500.0,0.00041095,31]
[334240060,1722855041365,-500.0,0.00041095,31]
[334240061,1722855041375,-500.0,0.00041095,31]
[334240062,1722855041385,-500.0,0.00041095,31]
[334240063,1722855041394,-703.47,0.00041095,31]
[334240064,1722855041404,-500.0,0.00041095,31]
[334240065,1722855041414,-500.0,0.00041095,31]
[334240066,1722855041424,-500.0,0.00041095,31]
[334240067,1722855041434,-99.07516889,0.00041095,31]
[334240068,1722855041461,-400.92483111,0.00041095,31]
[334240069,1722855041471,-500.0,0.00041095,31]
[334240070,1722855041480,-500.0,0.00041095,31]
[334240071,1722855041489,-500.0,0.00041095,31]
[334240072,1722855041499,-500.0,0.00041095,31]
[334240073,1722855041509,-843.22,0.00041095,31]
[334240074,1722855041518,-500.0,0.00041095,31]
[334240075,1722855041527,-500.0,0.00041095,31]
[334240076,1722855041537,-500.0,0.00041095,31]
[334240077,1722855041546,-351.84920158,0.00041095,31]
[334240120,1722855043499,-256.863,0.00041085,3]
[334240121,1722855043513,-16257.187,0.00041085,3]
[334240122,1722855043524,-148.15079842,0.00041095,31]
[334240123,1722855043535,-500.0,0.00041095,31]
[334240124,1722855043546,-500.0,0.00041095,31]
[334240125,1722855043556,-500.0,0.00041095,31]
[334240126,1722855043566,-500.0,0.00041095,31]
[334240127,1722855043576,-167.96977108,0.00041095,31]
[334240128,1722855043586,-500.0,0.00041095,31]
[334240129,1722855043595,-500.0,0.00041095,31]
[334240130,1722855043605,-500.0,0.00041095,31]
[334240131,1722855043617,-500.0,0.00041095,31]
[334240132,1722855043626,-500.0,0.00041095,31]
[334240133,1722855043636,-606.39,0.00041095,31]
[334240134,1722855043646,-948.05,0.00041095,31]
[334240135,1722855043656,-1217.41,0.00041095,31]
[334240136,1722855043672,-500.0,0.00041095,31]
[334240137,1722855043682,-500.0,0.00041095,31]
[334240138,1722855043692,-500.0,0.00041095,31]
[334240139,1722855043701,-689.27,0.00041095,31]
[334240140,1722855043711,-646.58,0.00041095,31]
[334240141,1722855043721,-500.0,0.00041095,31]
[334240142,1722855043730,-500.0,0.00041095,31]
[334240143,1722855043740,-500.0,0.00041095,31]
[334240144,1722855043749,-500.0,0.00041095,31]
[334240145,1722855043763,-500.0,0.00041095,31]
[334240146,1722855043773,-986.54,0.00041095,31]
[334240147,1722855043783,-500.0,0.00041095,31]
[334240148,1722855043792,-500.0,0.00041095,31]
[334240149,1722855043803,-500.0,0.00041095,31]
[334240150,1722855043812,-500.0,0.00041095,31]
[334240151,1722855043821,-241.56083932,0.00041095,31]
[334240152,1722855043830,-500.0,0.00041095,31]
[334240153,1722855043840,-500.0,0.00041095,31]
[334240154,1722855043851,-500.0,0.00041095,31]
[334240155,1722855043861,-500.0,0.00041095,31]
[334240156,1722855043870,-500.0,0.00041095,31]
[334240157,1722855043880,-500.0,0.00041095,31]
[334240158,1722855043890,-516.67,0.00041095,31]
[334240159,1722855043900,-500.0,0.00041095,31]
[334240160,1722855043909,-500.0,0.00041095,31]
[334240161,1722855043923,-500.0,0.00041095,31]
[334240162,1722855043933,-500.0,0.00041095,31]
[334240163,1722855043944,-500.0,0.00041095,31]
[334240164,1722855043953,-500.0,0.00041095,31]
[334240165,1722855043963,-500.0,0.00041095,31]
[334240166,1722855043973,-561.44,0.00041095,31]
[334240167,1722855043983,-500.0,0.00041095,31]
[334240168,1722855043993,-500.0,0.00041095,31]
[334240169,1722855044002,-500.0,0.00041095,31]
[334240170,1722855044011,-336.16563901,0.00041095,31]
[334240171,1722855044021,-236.72,0.00041095,31]
[334240172,1722855044031,-362.17109827,0.00041095,31]
[334240173,1722855044041,-1409.15,0.00041095,31]
[334240174,1722855044051,-500.0,0.00041095,31]
[334240175,1722855044061,-1083.53,0.00041095,31]
[334240176,1722855044071,-500.0,0.00041095,31]
[334240177,1722855044081,-500.0,0.00041095,31]
[334240178,1722855044090,-1193.48,0.00041095,31]
[334240179,1722855044100,-500.0,0.00041095,31]
[334240180,1722855044110,-500.0,0.00041095,31]
[334240181,1722855044119,-500.0,0.00041095,31]
[334240182,1722855044129,-500.0,0.00041095,30]
[334240183,1722855044139,-500.0,0.00041095,31]
[334240184,1722855044148,-502.39321332,0.00041095,31]
[334240185,1722855044158,-500.0,0.00041095,31]
[334240186,1722855044170,-538.97,0.00041095,31]
[334240187,1722855044179,-1078.1,0.00041095,31]
[334240188,1722855044188,-1649.0,0.00041095,31]
[334240189,1722855044198,-500.0,0.00041095,31]
[334240190,1722855044208,-500.0,0.00041095,31]
[334240192,1722855044217,-500.0,0.00041095,31]
[334240194,1722855044227,-598.31583488,0.00041095,31]
[334240195,1722855044236,-500.0,0.00041095,31]
[334240197,1722855044245,-500.0,0.00041095,31]
[334240198,1722855044255,-500.0,0.00041095,31]
[334240199,1722855044266,-500.0,0.00041095,31]
[334240200,1722855044276,-500.0,0.00041095,31]
[334240202,1722855044286,-500.0,0.00041095,31]
[334240204,1722855044295,-538.5,0.00041095,31]
[334240206,1722855044305,-500.0,0.00041095,31]
[334240208,1722855044315,-500.0,0.00041095,31]
[334240209,1722855044324,-500.0,0.00041095,31]
[334240210,1722855044334,-500.0,0.00041095,20]
[334240211,1722855044344,-500.0,0.00041095,31]
[334240212,1722855044354,-500.0,0.00041095,31]
[334240213,1722855044363,-560.86,0.00041095,31]
[334240214,1722855044373,-500.0,0.00041095,31]
[334240215,1722855044383,-500.0,0.00041095,31]
[334240216,1722855044392,-500.0,0.00041095,31]
[334240217,1722855044527,-207.21727553,0.00041095,31]
[334240218,1722855044540,-500.0,0.00041095,31]
[334240219,1722855044550,-500.0,0.00041095,31]
[334240220,1722855044559,-570.01860807,0.00041095,31]
[334240221,1722855044569,-500.0,0.00041095,31]
[334240222,1722855044578,-500.0,0.00041095,31]
[334240223,1722855044588,-500.0,0.00041095,31]
[334240224,1722855044598,-500.0,0.00041095,31]
[334240225,1722855044608,-1127.13,0.00041095,31]
[334240226,1722855044618,-500.0,0.00041095,31]
[334240227,1722855044629,-500.0,0.00041095,31]
[334240228,1722855044639,-500.0,0.00041095,31]
[334240229,1722855044649,-632.47656021,0.00041095,31]
[334240230,1722855044658,-500.0,0.00041095,31]
[334240231,1722855044670,-500.0,0.00041095,31]
[334240232,1722855044680,-500.0,0.00041095,31]
[334240233,1722855044690,-500.0,0.00041095,31]
[334240234,1722855044700,-9778.98,0.00041095,31]
[334240235,1722855044710,-500.0,0.00041095,31]
[334240236,1722855044719,-701.63,0.00041095,31]
[334240237,1722855044729,-768.05,0.00041095,31]
[334240238,1722855044739,-504.17778188,0.00041095,31]
[334240239,1722855044749,-987.68,0.00041095,31]
[334240240,1722855044759,-500.0,0.00041095,31]
[334240241,1722855044771,-429.41671686,0.00041095,31]
[334240242,1722855044781,-508.51,0.00041095,31]
[334240243,1722855044791,-500.0,0.00041095,31]
[334240244,1722855044802,-500.0,0.00041095,31]
[334240245,1722855044812,-748.56,0.00041095,31]
[334240246,1722855044822,-500.0,0.00041095,31]
[334240247,1722855044832,-500.0,0.00041095,31]
[334240248,1722855044842,-500.0,0.00041095,31]
[334240249,1722855044855,-500.0,0.00041095,31]
[334240250,1722855044866,-905.82,0.00041095,31]
[334240251,1722855044875,-500.0,0.00041095,31]
[334240252,1722855044884,-500.0,0.00041095,31]
[334240253,1722855044895,-500.0,0.00041095,31]
[334240254,1722855044904,-500.0,0.00041095,31]
[334240255,1722855044912,-500.0,0.00041095,31]
[334240256,1722855044923,-500.0,0.00041095,31]
[334240257,1722855044933,-503.76685668,0.00041095,31]
[334240258,1722855044943,-500.0,0.00041095,31]
[334240259,1722855044953,-1565.67,0.00041095,31]
[334240260,1722855044962,-500.0,0.00041095,31]
[334240261,1722855044972,-817.47,0.00041095,31]
[334240262,1722855044981,-500.0,0.00041095,31]
[334240263,1722855044992,-500.0,0.00041095,31]
[334240264,1722855045002,-500.0,0.00041095,31]
[334240265,1722855045012,-1007.12,0.00041095,31]
[334240266,1722855045022,-500.0,0.00041095,31]
[334240267,1722855045032,-500.0,0.00041095,31]
[334240268,1722855045043,-500.0,0.00041095,31]
[334240269,1722855045053,-500.0,0.00041095,31]
[334240270,1722855045062,-1178.52,0.00041095,31]
[334240271,1722855045072,-714.52,0.00041095,31]
[334240272,1722855045081,-500.0,0.00041095,31]
[334240273,1722855045090,-500.0,0.00041095,31]
[334240274,1722855045099,-500.0,0.00041095,31]
[334240275,1722855045109,-1039.78,0.00041095,31]
[334240276,1722855045118,-500.0,0.00041095,31]
[334240277,1722855045127,-500.0,0.00041095,31]
[334240278,1722855045137,-1227.19,0.00041095,31]
[334240279,1722855045147,-500.0,0.00041095,31]
[334240280,1722855045156,-708.67,0.00041095,31]
[334240281,1722855045169,-500.0,0.00041095,31]
[334240282,1722855045178,-500.0,0.00041095,31]
[334240283,1722855045188,-500.0,0.00041095,31]
[334240284,1722855045197,-500.0,0.00041095,31]
[334240285,1722855045207,-500.0,0.00041095,31]
[334240286,1722855045216,-500.0,0.00041095,31]
[334240287,1722855045225,-500.0,0.00041095,31]
[334240288,1722855045235,-500.0,0.00041095,31]
[334240289,1722855045244,-548.75,0.00041095,31]
[334240290,1722855045253,-920.73,0.00041095,31]
[334240291,1722855045262,-500.0,0.00041095,31]
[334240292,1722855045271,-500.0,0.00041095,31]
[334240293,1722855045280,-500.0,0.00041095,31]
[334240294,1722855045291,-500.0,0.00041095,31]
[334240295,1722855045300,-500.0,0.00041095,31]
[334240296,1722855045309,-1263.83,0.00041095,31]
[334240297,1722855045319,-1237.48,0.00041095,31]
[334240298,1722855045329,-500.0,0.00041095,31]
[334240299,1722855045339,-500.0,0.00041095,31]
[334240300,1722855045349,-500.0,0.00041095,31]
[334240301,1722855045359,-500.0,0.00041095,31]
[334240302,1722855045369,-500.0,0.00041095,31]
[334240303,1722855045379,-500.0,0.00041095,31]
[334240304,1722855045389,-500.0,0.00041095,31]
[334240305,1722855045398,-500.0,0.00041095,31]
[334240306,1722855045409,-500.0,0.00041095,31]
[334240307,1722855045422,-2406.0,0.00041095,31]
[334240308,1722855045432,-500.0,0.00041095,31]
[334240309,1722855045441,-500.0,0.00041095,31]
[334240310,1722855045451,-839.85,0.00041095,31]
[334240311,1722855045460,-500.0,0.00041095,31]
[334240312,1722855045470,-500.0,0.00041095,31]
[334240314,1722855045480,-1572.12,0.00041095,31]
[334240315,1722855045489,-500.0,0.00041095,31]
[334240317,1722855045499,-500.0,0.00041095,31]
[334240319,1722855045508,-500.0,0.00041095,31]
[334240320,1722855045517,-662.89,0.00041095,31]
[334240321,1722855045527,-500.0,0.00041095,31]
[334240322,1722855045536,-1626.65,0.00041095,31]
[334240323,1722855045546,-500.0,0.00041095,31]
[334240324,1722855045556,-7412.01,0.00041095,31]
[334240325,1722855045565,-500.0,0.00041095,31]
[334240326,1722855045575,-500.0,0.00041095,31]
[334240327,1722855045584,-500.0,0.00041095,31]
[334240328,1722855045593,-500.0,0.00041095,31]
[334240329,1722855045603,-1323.45,0.00041095,31]
[334240330,1722855045613,-985.18,0.00041095,31]
[334240331,1722855045622,-504.36152821,0.00041095,31]
[334240332,1722855045632,-500.0,0.00041095,31]
[334240333,1722855045641,-500.0,0.00041095,31]
[334240334,1722855045651,-562.87051529,0.00041095,31]
[334240335,1722855045661,-1213.77,0.00041095,31]
[334240336,1722855045675,-500.0,0.00041095,31]
[334240337,1722855045684,-16757.11,0.00041095,31]
[334240338,1722855045693,-500.0,0.00041095,31]
[334240340,1722855045703,-500.0,0.00041095,31]
[334240341,1722855045712,-1041.3,0.00041095,31]
[334240342,1722855045722,-500.0,0.00041095,31]
[334240343,1722855045732,-500.0,0.00041095,31]
[334240344,1722855045741,-479.71797001,0.00041095,31]
[334240345,1722855045751,-3947.2,0.00041095,31]
[334240346,1722855045764,-489.42702124,0.00041095,31]
[334240348,1722855045774,-500.0,0.00041095,31]
[334240350,1722855045784,-560.16,0.00041095,31]
[334240351,1722855045794,-500.0,0.00041095,31]
[334240352,1722855045804,-2691.18,0.00041095,21]
[334240353,1722855045813,-500.0,0.00041095,31]
[334240354,1722855045822,-500.0,0.00041095,31]
[334240355,1722855045832,-2605.65,0.00041095,31]
[334240356,1722855045842,-1132.49,0.00041095,31]
[334240357,1722855045851,-500.0,0.00041095,31]
[334240358,1722855045860,-500.0,0.00041095,31]
[334240359,1722855045870,-3409.21,0.00041095,31]
[334240360,1722855045879,-367.69209888,0.00041095,30]
[334240361,1722855045889,-500.0,0.00041095,31]
[334240363,1722855045898,-755.25,0.00041095,31]
[334240364,1722855045908,-500.0,0.00041095,31]
[334240365,1722855045920,-500.0,0.00041095,31]
[334240366,1722855045929,-551.19145706,0.00041095,31]
[334240367,1722855045939,-2306.12,0.00041095,31]
[334240368,1722855045949,-991.13,0.00041095,31]
[334240369,1722855045958,-500.0,0.00041095,31]
[334240370,1722855045969,-500.0,0.00041095,31]
[334240371,1722855045979,-500.0,0.00041095,31]
[334240372,1722855045989,-2755.91,0.00041095,31]
[334240373,1722855045999,-500.0,0.00041095,31]
[334240374,1722855046009,-500.0,0.00041095,31]
[334240375,1722855046020,-500.0,0.00041095,31]
[334240376,1722855046031,-500.0,0.00041095,31]
[334240377,1722855046041,-500.0,0.00041095,31]
[334240378,1722855046052,-500.0,0.00041095,31]
[334240379,1722855046062,-533.03,0.00041095,31]
[334240380,1722855046071,-500.0,0.00041095,31]
[334240381,1722855046081,-500.0,0.00041095,31]
[334240382,1722855046091,-500.0,0.00041095,31]
[334240383,1722855046101,-500.0,0.00041095,31]
[334240385,1722855046110,-500.0,0.00041095,31]
[334240386,1722855046119,-4944.89,0.00041095,31]
[334240388,1722855046129,-500.0,0.00041095,31]
[334240389,1722855046138,-529.71,0.00041095,31]
[334240390,1722855046147,-937.48,0.00041095,31]
[334240391,1722855046156,-500.0,0.00041095,31]
[334240392,1722855046167,-500.0,0.00041095,31]
[334240393,1722855046177,-687.97,0.00041095,31]
[334240394,1722855046186,-500.0,0.00041095,31]
[334240395,1722855046195,-500.0,0.00041095,31]
[334240396,1722855046204,-500.0,0.00041095,31]
[334240397,1722855046213,-500.0,0.00041095,31]
[334240398,1722855046224,-664.19,0.00041095,31]
[334240399,1722855046233,-500.0,0.00041095,31]
[334240400,1722855046243,-500.0,0.00041095,31]
[334240401,1722855046253,-500.0,0.00041095,31]
[334240402,1722855046262,-9471.47,0.00041095,31]
[334240403,1722855046272,-539.06688618,0.00041095,31]
[334240404,1722855046282,-500.0,0.00041095,31]
[334240405,1722855046291,-500.0,0.00041095,31]
[334240406,1722855046300,-500.0,0.00041095,31]
[334240407,1722855046310,-865.03,0.00041095,31]
[334240408,1722855046319,-503.8388825,0.00041095,2]
[334240409,1722855046329,-506.48,0.00041095,31]
[334240410,1722855046339,-1066.85,0.00041095,31]
[334240411,1722855046349,-636.68,0.00041095,31]
[334240412,1722855046358,-500.0,0.00041095,31]
[334240413,1722855046368,-500.0,0.00041095,31]
[334240414,1722855046378,-500.0,0.00041095,31]
[334240415,1722855046388,-1286.88,0.00041095,31]
[334240416,1722855046397,-500.0,0.00041095,31]
[334240417,1722855046407,-500.0,0.00041095,31]
[334240418,1722855046418,-500.0,0.00041095,31]
[334240419,1722855046427,-500.0,0.00041095,31]
[334240420,1722855046436,-801.23,0.00041095,31]
[334240421,1722855046445,-500.0,0.00041095,31]
[334240422,1722855046454,-597.11,0.00041095,31]
[334240423,1722855046464,-500.0,0.00041095,31]
[334240424,1722855046474,-500.0,0.00041095,31]
[334240425,1722855046484,-500.0,0.00041095,31]
[334240426,1722855046493,-500.0,0.00041095,31]
[334240427,1722855046503,-500.0,0.00041095,31]
[334240428,1722855046512,-500.0,0.00041095,31]
[334240429,1722855046521,-1215.94,0.00041095,31]
[334240431,1722855046531,-500.0,0.00041095,31]
[334240432,1722855046541,-500.0,0.00041095,31]
[334240434,1722855046551,-1028.52,0.00041095,31]
[334240437,1722855046561,-237.81288385,0.00041095,31]
[334240439,1722855046571,-1090.76,0.00041095,31]
[334240441,1722855046580,-593.83,0.00041095,31]
[334240443,1722855046590,-500.0,0.00041095,31]
[334240445,1722855046600,-500.0,0.00041095,31]
[334240447,1722855046609,-736.79,0.00041095,31]
[334240449,1722855046619,-873.59,0.00041095,31]
[334240450,1722855046628,-964.57,0.00041095,31]
[334240451,1722855046638,-7408.01,0.00041095,31]
[334240452,1722855046648,-500.0,0.00041095,31]
[334240453,1722855046657,-500.0,0.00041095,31]
[334240454,1722855046669,-659.9,0.00041095,31]
[334240455,1722855046679,-500.0,0.00041095,31]
[334240456,1722855046688,-11598.75,0.00041095,31]
[334240457,1722855046697,-500.0,0.00041095,31]
[334240458,1722855046706,-500.0,0.00041095,31]
[334240459,1722855046716,-1709.24,0.00041095,31]
[334240460,1722855046725,-1187.93,0.00041095,31]
[334240461,1722855046734,-500.0,0.00041095,31]
[334240462,1722855046744,-894.23,0.00041095,31]
[334240463,1722855046754,-500.0,0.00041095,31]
[334240464,1722855046766,-500.0,0.00041095,31]
[334240465,1722855046776,-500.0,0.00041095,31]
[334240466,1722855046785,-4819.05,0.00041095,31]
[334240467,1722855046794,-500.0,0.00041095,31]
[334240468,1722855046805,-500.0,0.00041095,31]
[334240469,1722855046816,-2369.35,0.00041095,31]
[334240470,1722855046825,-500.0,0.00041095,31]
[334240471,1722855046835,-14683.88,0.00041095,120]
[334240472,1722855046846,-3808.57,0.00041095,31]
[334240473,1722855046855,-1143.54,0.00041095,31]
[334240474,1722855046865,-500.0,0.00041095,31]
[334240475,1722855046875,-154.64261284,0.00041274,57]
[334240476,1722855046885,-151.0,0.00041342,120]
[334240477,1722855046894,-347.36937675,0.00041543,2]
[334240478,1722855046903,-150.5,0.0004162,120]
[334240479,1722855046912,-150.5,0.0004163,120]
[334240480,1722855046925,-150.5,0.0004164,120]
[334240481,1722855046935,-504.05359381,0.00041643,31]
[334240482,1722855046945,-500.0,0.00041643,31]
[334240483,1722855046955,-500.0,0.00041643,2]
[334240484,1722855046964,-500.0,0.00041643,31]
[334240485,1722855046974,-500.0,0.00041643,31]
[334240486,1722855046983,-500.0,0.00041643,31]
[334240487,1722855046992,-500.0,0.00041643,31]
[334240488,1722855047002,-500.0,0.00041643,31]
[334240489,1722855047011,-500.0,0.00041643,31]
[334240490,1722855047021,-500.0,0.00041643,31]
[334240491,1722855047029,-500.0,0.00041643,31]
[334240492,1722855047039,-500.0,0.00041643,31]
[334240493,1722855047049,-607.71914173,0.00041643,31]
[334240494,1722855047058,-500.0,0.00041643,31]
[334240495,1722855047067,-500.0,0.00041643,31]
[334240496,1722855047076,-500.0,0.00041643,31]
[334240498,1722855047085,-500.0,0.00041643,31]
[334240500,1722855047094,-500.0,0.00041643,31]
[334240502,1722855047103,-500.0,0.00041643,31]
[334240504,1722855047112,-500.0,0.00041643,31]
[334240506,1722855047121,-406.19972749,0.00041643,31]
[334240508,1722855047131,-500.0,0.00041643,31]
[334240510,1722855047141,-500.0,0.00041643,31]
[334240511,1722855047150,-500.0,0.00041643,31]
[334240512,1722855047159,-500.0,0.00041643,31]
[334240513,1722855047170,-500.0,0.00041643,31]
[334240514,1722855047180,-500.0,0.00041643,31]
[334240515,1722855047189,-500.0,0.00041643,31]
[334240516,1722855047199,-500.0,0.00041643,31]
[334240517,1722855047208,-1458.86,0.00041643,31]
[334240518,1722855047218,-518.46,0.00041643,31]
[334240519,1722855047227,-500.0,0.00041643,31]
[334240520,1722855047236,-500.0,0.00041643,31]
[334240521,1722855047245,-500.0,0.00041643,31]
[334240522,1722855047255,-500.0,0.00041643,31]
[334240523,1722855047264,-740.66,0.00041643,31]
[334240524,1722855047273,-635.54,0.00041643,31]
[334240525,1722855047283,-500.0,0.00041643,31]
[334240527,1722855047292,-500.0,0.00041643,31]
[334240528,1722855047301,-200.0,0.00041643,7]
[334240530,1722855047311,-500.0,0.00041643,31]
[334240531,1722855047320,-500.0,0.00041643,31]
[334240533,1722855047330,-500.0,0.00041643,31]
[334240535,1722855047339,-500.0,0.00041643,31]
[334240537,1722855047348,-500.0,0.00041643,31]
[334240539,1722855047358,-500.0,0.00041643,31]
[334240540,1722855047368,-500.0,0.00041643,31]
[334240542,1722855047378,-500.0,0.00041643,31]
[334240544,1722855047388,-517.66,0.00041643,31]
[334240545,1722855047397,-468.73583784,0.00041643,31]
[334240547,1722855047406,-719.7,0.00041643,31]
[334240548,1722855047419,-793.81,0.00041643,31]
[334240550,1722855047429,-420.48917633,0.00041643,31]
[334240552,1722855047441,-500.0,0.00041643,31]
[334240554,1722855047450,-500.0,0.00041643,31]
[334240555,1722855047459,-500.0,0.00041643,31]
[334240556,1722855047469,-500.0,0.00041643,31]
[334240557,1722855047478,-500.0,0.00041643,31]
[334240558,1722855047487,-1510.24,0.00041643,31]
[334240559,1722855047496,-500.0,0.00041643,31]
[334240560,1722855047505,-500.0,0.00041643,31]
[334240561,1722855047514,-500.0,0.00041643,31]
[334240562,1722855047524,-500.0,0.00041643,31]
[334240563,1722855047533,-703.47,0.00041643,31]
[334240564,1722855047660,-500.0,0.00041643,31]
[334240565,1722855047672,-500.0,0.00041643,31]
[334240566,1722855047682,-500.0,0.00041643,31]
[334240567,1722855047692,-500.0,0.00041643,31]
[334240568,1722855047701,-500.0,0.00041643,31]
[334240569,1722855047710,-500.0,0.00041643,31]
[334240570,1722855047719,-500.0,0.00041643,31]
[334240571,1722855047728,-500.0,0.00041643,31]
[334240572,1722855047737,-843.22,0.00041643,31]
[334240573,1722855047745,-500.0,0.00041643,31]
[334240574,1722855047755,-500.0,0.00041643,31]
[334240575,1722855047764,-500.0,0.00041643,31]
[334240576,1722855047776,-500.0,0.00041643,31]
[334240577,1722855047786,-500.0,0.00041643,31]
[334240578,1722855047795,-500.0,0.00041643,31]
[334240579,1722855047806,-500.0,0.00041643,31]
[334240580,1722855047815,-500.0,0.00041643,31]
[334240581,1722855047825,-500.0,0.00041643,31]
[334240582,1722855047835,-500.0,0.00041643,31]
[334240583,1722855047844,-500.0,0.00041643,31]
[334240584,1722855047855,-500.0,0.00041643,31]